[Event "Titled Tuesday Blitz February 28 Early 2023"]
[White "Darini, Pouria"]
[Black "Timofeev, Artyom"]
[WhiteFideId "12502200"]
[BlackFideId "4140419"]
[WhiteElo "2482"]
[BlackElo "2586"]
[Result "1-0"]
[Round "03"]
[TimeControl "180+2"]
[Date "2023.02.28"]
[WhiteClock "0:00:07"]
[BlackClock "0:00:04"]

1. e4 {[%clk 0:03:00]}  c5 {[%clk 0:02:59]} 2. Nf3 {[%clk 0:03:00]}  d6 {[%clk 0:02:59]} 3. d4 {[%clk 0:02:59]}  cxd4 {[%clk 0:02:59]} 4. Nxd4 {[%clk 0:03:00]}  Nf6 {[%clk 0:02:59]} 5. Nc3 {[%clk 0:03:00]}  g6 {[%clk 0:02:59]} 6. Be3 {[%clk 0:02:59]}  Bg7 {[%clk 0:02:59]} 7. f3 {[%clk 0:02:58]}  Nc6 {[%clk 0:02:58]} 8. Qd2 {[%clk 0:02:58]}  O-O {[%clk 0:02:58]} 9. O-O-O {[%clk 0:02:58]}  Nxd4 {[%clk 0:02:55]} 10. Bxd4 {[%clk 0:02:57]}  Be6 {[%clk 0:02:56]} 11. Kb1 {[%clk 0:02:56]}  Rc8 {[%clk 0:02:55]} 12. g4 {[%clk 0:02:49]}  a6 {[%clk 0:02:46]} 13. h4 {[%clk 0:02:44]}  h5 {[%clk 0:02:40]} 14. g5 {[%clk 0:02:20]}  Nd7 {[%clk 0:02:38]} 15. Bxg7 {[%clk 0:02:19]}  Kxg7 {[%clk 0:02:38]} 16. Qd4+ {[%clk 0:02:20]}  Kg8 {[%clk 0:02:36]} 17. f4 {[%clk 0:02:16]}  Qb6 {[%clk 0:02:35]} 18. Be2 {[%clk 0:01:41]}  Qxd4 {[%clk 0:02:33]} 19. Rxd4 {[%clk 0:01:41]}  Kg7 {[%clk 0:02:24]} 20. Rf1 {[%clk 0:01:27]}  f5 {[%clk 0:02:12]} 21. Bf3 {[%clk 0:01:17]}  fxe4 {[%clk 0:01:54]} 22. Bxe4 {[%clk 0:01:04]}  Rc7 {[%clk 0:01:49]} 23. Nd5 {[%clk 0:00:57]}  Bxd5 {[%clk 0:01:49]} 24. Rxd5 {[%clk 0:00:58]}  Nc5 {[%clk 0:01:43]} 25. Bg2 {[%clk 0:00:57]}  b5 {[%clk 0:01:18]} 26. f5 {[%clk 0:00:52]}  gxf5 {[%clk 0:01:15]} 27. Rdxf5 {[%clk 0:00:53]}  Rxf5 {[%clk 0:01:15]} 28. Rxf5 {[%clk 0:00:54]}  Ne6 {[%clk 0:01:15]} 29. Bd5 {[%clk 0:00:46]}  Nd8 {[%clk 0:01:05]} 30. Rf4 {[%clk 0:00:35]}  Rc5 {[%clk 0:00:24]} 31. Bf3 {[%clk 0:00:35]}  Re5 {[%clk 0:00:22]} 32. a4 {[%clk 0:00:35]}  Ne6 {[%clk 0:00:22]} 33. Rb4 {[%clk 0:00:31]}  Kg6 {[%clk 0:00:20]} 34. axb5 {[%clk 0:00:31]}  axb5 {[%clk 0:00:20]} 35. Be4+ {[%clk 0:00:30]}  Kg7 {[%clk 0:00:20]} 36. Bf3 {[%clk 0:00:30]}  Kg6 {[%clk 0:00:20]} 37. Be4+ {[%clk 0:00:27]}  Kg7 {[%clk 0:00:20]} 38. Bd3 {[%clk 0:00:28]}  Nc7 {[%clk 0:00:16]} 39. c3 {[%clk 0:00:28]}  Rc5 {[%clk 0:00:12]} 40. Rf4 {[%clk 0:00:25]}  e5 {[%clk 0:00:11]} 41. Rf6 {[%clk 0:00:24]}  d5 {[%clk 0:00:11]} 42. Rg6+ {[%clk 0:00:24]}  Kf7 {[%clk 0:00:11]} 43. Rf6+ {[%clk 0:00:25]}  Kg7 {[%clk 0:00:11]} 44. Be2 {[%clk 0:00:22]}  e4 {[%clk 0:00:09]} 45. Bxh5 {[%clk 0:00:22]}  e3 {[%clk 0:00:10]} 46. Rf7+ {[%clk 0:00:22]}  Kg8 {[%clk 0:00:10]} 47. Re7 {[%clk 0:00:23]}  d4 {[%clk 0:00:09]} 48. cxd4 {[%clk 0:00:23]}  Rc4 {[%clk 0:00:09]} 49. Bf7+ {[%clk 0:00:21]}  Kf8 {[%clk 0:00:09]} 50. Bxc4 {[%clk 0:00:21]}  Kxe7 {[%clk 0:00:10]} 51. Bd3 {[%clk 0:00:17]}  Ne6 {[%clk 0:00:09]} 52. d5 {[%clk 0:00:07]}  Nf4 {[%clk 0:00:05]} 53. Bxb5 {[%clk 0:00:08]}  Kd6 {[%clk 0:00:04]} 54. Kc1 {[%clk 0:00:08]}  Kxd5 {[%clk 0:00:04]} 55. Kd1 {[%clk 0:00:08]}  Ke4 {[%clk 0:00:05]} 56. b4 {[%clk 0:00:08]}  Kf3 {[%clk 0:00:05]} 57. Bc4 {[%clk 0:00:05]}  Ke4 {[%clk 0:00:03]} 58. b5 {[%clk 0:00:06]}  Kd4 {[%clk 0:00:03]} 59. Be2 {[%clk 0:00:06]}  Kc5 {[%clk 0:00:03]} 60. h5 {[%clk 0:00:06]}  Nd5 {[%clk 0:00:02]} 61. g6 {[%clk 0:00:05]}  Nc3+ {[%clk 0:00:02]} 62. Ke1 {[%clk 0:00:06]}  Ne4 {[%clk 0:00:03]} 63. g7 {[%clk 0:00:06]}  Nf6 {[%clk 0:00:03]} 64. h6 {[%clk 0:00:06]}  Kb6 {[%clk 0:00:03]} 65. h7 {[%clk 0:00:06]}  Nxh7 {[%clk 0:00:04]} 66. g8=Q {[%clk 0:00:07]} 1-0


[Site "https://www.chess.com"]

[Event "Titled Tuesday Blitz February 28 Early 2023"]
[White "Domingo Nunez, Ruben"]
[Black "Vokhidov, Shamsiddin"]
[WhiteFideId "22245570"]
[BlackFideId "14204223"]
[WhiteElo "2404"]
[BlackElo "2570"]
[Result "0-1"]
[Round "03"]
[TimeControl "180+2"]
[Date "2023.02.28"]
[WhiteClock "0:00:07"]
[BlackClock "0:00:16"]

1. c4 {[%clk 0:02:52]}  Nf6 {[%clk 0:03:00]} 2. g3 {[%clk 0:02:52]}  c5 {[%clk 0:03:01]} 3. Bg2 {[%clk 0:02:53]}  Nc6 {[%clk 0:03:01]} 4. Nc3 {[%clk 0:02:53]}  e6 {[%clk 0:03:01]} 5. Nf3 {[%clk 0:02:51]}  d5 {[%clk 0:03:00]} 6. cxd5 {[%clk 0:02:52]}  exd5 {[%clk 0:03:01]} 7. d4 {[%clk 0:02:50]}  cxd4 {[%clk 0:03:01]} 8. Nxd4 {[%clk 0:02:51]}  Bc5 {[%clk 0:03:02]} 9. Nb3 {[%clk 0:02:48]}  Bb6 {[%clk 0:03:01]} 10. O-O {[%clk 0:02:35]}  d4 {[%clk 0:03:00]} 11. Na4 {[%clk 0:02:36]}  O-O {[%clk 0:03:00]} 12. Nxb6 {[%clk 0:02:32]}  axb6 {[%clk 0:03:01]} 13. Bxc6 {[%clk 0:02:25]}  bxc6 {[%clk 0:03:02]} 14. Qxd4 {[%clk 0:02:25]}  Be6 {[%clk 0:02:37]} 15. Bg5 {[%clk 0:02:14]}  c5 {[%clk 0:02:32]} 16. Qf4 {[%clk 0:01:49]}  Re8 {[%clk 0:02:19]} 17. Rfd1 {[%clk 0:01:27]}  Nd5 {[%clk 0:02:18]} 18. Bxd8 {[%clk 0:01:19]}  Nxf4 {[%clk 0:02:18]} 19. gxf4 {[%clk 0:01:15]}  Rexd8 {[%clk 0:02:18]} 20. f3 {[%clk 0:01:06]}  Rxd1+ {[%clk 0:02:15]} 21. Rxd1 {[%clk 0:01:06]}  g5 {[%clk 0:02:15]} 22. f5 {[%clk 0:00:40]}  Bxf5 {[%clk 0:02:14]} 23. Nc1 {[%clk 0:00:41]}  Be6 {[%clk 0:02:06]} 24. Rd6 {[%clk 0:00:41]}  b5 {[%clk 0:02:03]} 25. Rb6 {[%clk 0:00:34]}  Rd8 {[%clk 0:01:19]} 26. Kf2 {[%clk 0:00:29]}  c4 {[%clk 0:00:28]} 27. Rxb5 {[%clk 0:00:29]}  h6 {[%clk 0:00:27]} 28. Ke1 {[%clk 0:00:23]}  Kg7 {[%clk 0:00:27]} 29. b3 {[%clk 0:00:19]}  Rc8 {[%clk 0:00:25]} 30. bxc4 {[%clk 0:00:17]}  Rxc4 {[%clk 0:00:26]} 31. Nd3 {[%clk 0:00:12]}  Rh4 {[%clk 0:00:25]} 32. Nc5 {[%clk 0:00:10]}  Bxa2 {[%clk 0:00:25]} 33. Rb2 {[%clk 0:00:10]}  Bc4 {[%clk 0:00:18]} 34. e3 {[%clk 0:00:08]}  Kf6 {[%clk 0:00:17]} 35. Ne4+ {[%clk 0:00:07]}  Ke5 {[%clk 0:00:16]} 36. Rb5+ {[%clk 0:00:07]}  Bxb5 {[%clk 0:00:16]} 0-1


[Site "https://www.chess.com"]

[Event "Titled Tuesday Blitz February 28 Early 2023"]
[White "Abdrlauf, Elham"]
[Black "Tan, Jun Ying"]
[WhiteFideId "1533533"]
[BlackFideId "5710413"]
[WhiteElo "2476"]
[BlackElo "2089"]
[Result "1-0"]
[Round "03"]
[TimeControl "180+2"]
[Date "2023.02.28"]
[WhiteClock "0:01:00"]
[BlackClock "0:00:03"]

1. g3 {[%clk 0:02:59]}  c5 {[%clk 0:02:57]} 2. Bg2 {[%clk 0:03:00]}  Nc6 {[%clk 0:02:58]} 3. e3 {[%clk 0:03:01]}  d5 {[%clk 0:02:49]} 4. Ne2 {[%clk 0:03:01]}  Nf6 {[%clk 0:02:48]} 5. d4 {[%clk 0:03:01]}  Bg4 {[%clk 0:02:35]} 6. Nbc3 {[%clk 0:02:56]}  e6 {[%clk 0:02:32]} 7. O-O {[%clk 0:02:56]}  cxd4 {[%clk 0:02:26]} 8. exd4 {[%clk 0:02:57]}  Be7 {[%clk 0:02:26]} 9. h3 {[%clk 0:02:56]}  Bh5 {[%clk 0:02:25]} 10. g4 {[%clk 0:02:57]}  Bg6 {[%clk 0:02:26]} 11. Nf4 {[%clk 0:02:58]}  O-O {[%clk 0:02:25]} 12. Nxg6 {[%clk 0:02:58]}  hxg6 {[%clk 0:02:25]} 13. Ne2 {[%clk 0:02:56]}  Rc8 {[%clk 0:02:20]} 14. c3 {[%clk 0:02:57]}  b5 {[%clk 0:02:19]} 15. a3 {[%clk 0:02:56]}  a5 {[%clk 0:02:19]} 16. Nf4 {[%clk 0:02:55]}  b4 {[%clk 0:02:15]} 17. axb4 {[%clk 0:02:56]}  axb4 {[%clk 0:02:15]} 18. Nd3 {[%clk 0:02:57]}  bxc3 {[%clk 0:02:13]} 19. bxc3 {[%clk 0:02:58]}  Na5 {[%clk 0:02:03]} 20. Ba3 {[%clk 0:02:46]}  Nc4 {[%clk 0:01:56]} 21. Bxe7 {[%clk 0:02:46]}  Qxe7 {[%clk 0:01:57]} 22. Qe2 {[%clk 0:02:44]}  Nd6 {[%clk 0:01:47]} 23. Nc5 {[%clk 0:02:40]}  Rc7 {[%clk 0:01:36]} 24. Ra6 {[%clk 0:02:38]}  Nd7 {[%clk 0:01:28]} 25. Na4 {[%clk 0:02:21]}  Rfc8 {[%clk 0:01:09]} 26. Rb1 {[%clk 0:02:02]}  Nf6 {[%clk 0:00:56]} 27. Nc5 {[%clk 0:01:58]}  Nd7 {[%clk 0:00:56]} 28. Na4 {[%clk 0:01:40]}  Nf6 {[%clk 0:00:56]} 29. Nb6 {[%clk 0:01:41]}  Rb8 {[%clk 0:00:49]} 30. Re1 {[%clk 0:01:35]}  Rxc3 {[%clk 0:00:22]} 31. Nxd5 {[%clk 0:01:18]}  Nxd5 {[%clk 0:00:22]} 32. Bxd5 {[%clk 0:01:19]}  Rxh3 {[%clk 0:00:22]} 33. Qe5 {[%clk 0:01:14]}  Rd8 {[%clk 0:00:17]} 34. Bg2 {[%clk 0:01:10]}  Rb3 {[%clk 0:00:12]} 35. d5 {[%clk 0:01:10]}  Qf6 {[%clk 0:00:07]} 36. Rxd6 {[%clk 0:01:06]}  Rxd6 {[%clk 0:00:05]} 37. Qxd6 {[%clk 0:01:07]}  Rb2 {[%clk 0:00:05]} 38. Rf1 {[%clk 0:01:02]}  exd5 {[%clk 0:00:04]} 39. Qxf6 {[%clk 0:01:02]}  gxf6 {[%clk 0:00:05]} 40. Bxd5 {[%clk 0:01:03]}  Kg7 {[%clk 0:00:05]} 41. Rc1 {[%clk 0:01:01]}  Rd2 {[%clk 0:00:06]} 42. Rc5 {[%clk 0:01:00]}  Rd1+ {[%clk 0:00:06]} 43. Kg2 {[%clk 0:01:01]}  Rd2 {[%clk 0:00:06]} 44. Kg3 {[%clk 0:01:01]}  Rd1 {[%clk 0:00:06]} 45. Kf3 {[%clk 0:01:00]}  Rd3+ {[%clk 0:00:06]} 46. Ke2 {[%clk 0:01:01]}  Rd4 {[%clk 0:00:06]} 47. f3 {[%clk 0:01:02]}  f5 {[%clk 0:00:04]} 48. Ke3 {[%clk 0:00:58]}  Rd1 {[%clk 0:00:04]} 49. gxf5 {[%clk 0:00:58]}  gxf5 {[%clk 0:00:05]} 50. Kf4 {[%clk 0:00:59]}  Rd3 {[%clk 0:00:03]} 51. Kxf5 {[%clk 0:00:59]}  Rd4 {[%clk 0:00:02]} 52. Ke5 {[%clk 0:00:59]}  Rd1 {[%clk 0:00:02]} 53. Rc7 {[%clk 0:00:59]}  Re1+ {[%clk 0:00:03]} 54. Kf5 {[%clk 0:01:00]} 1-0


[Site "https://www.chess.com"]

[Event "Titled Tuesday Blitz February 28 Early 2023"]
[White "Livaic, Leon"]
[Black "Yaran, Siar"]
[WhiteFideId "14531534"]
[BlackFideId "6323006"]
[WhiteElo "2509"]
[BlackElo "2191"]
[Result "0-1"]
[Round "03"]
[TimeControl "180+2"]
[Date "2023.02.28"]
[WhiteClock "0:00:15"]
[BlackClock "0:00:16"]

1. d4 {[%clk 0:03:00]}  Nf6 {[%clk 0:02:59]} 2. Bg5 {[%clk 0:03:01]}  Ne4 {[%clk 0:02:59]} 3. Bf4 {[%clk 0:03:00]}  f6 {[%clk 0:02:59]} 4. e3 {[%clk 0:02:41]}  Nc6 {[%clk 0:02:54]} 5. Bd3 {[%clk 0:02:37]}  d5 {[%clk 0:02:47]} 6. Nf3 {[%clk 0:02:18]}  Bg4 {[%clk 0:02:38]} 7. h3 {[%clk 0:02:13]}  Bh5 {[%clk 0:02:34]} 8. Bh2 {[%clk 0:02:04]}  e5 {[%clk 0:02:19]} 9. g4 {[%clk 0:01:51]}  Bg6 {[%clk 0:02:12]} 10. dxe5 {[%clk 0:01:51]}  fxe5 {[%clk 0:02:04]} 11. Bb5 {[%clk 0:01:32]}  Bc5 {[%clk 0:01:20]} 12. Bxc6+ {[%clk 0:01:13]}  bxc6 {[%clk 0:01:19]} 13. O-O {[%clk 0:00:42]}  O-O {[%clk 0:01:17]} 14. Nc3 {[%clk 0:00:35]}  Nxc3 {[%clk 0:00:55]} 15. bxc3 {[%clk 0:00:36]}  e4 {[%clk 0:00:34]} 16. Ne5 {[%clk 0:00:30]}  Bd6 {[%clk 0:00:18]} 17. Nxg6 {[%clk 0:00:28]}  hxg6 {[%clk 0:00:17]} 18. f4 {[%clk 0:00:26]}  exf3 {[%clk 0:00:17]} 19. Rxf3 {[%clk 0:00:27]}  Bxh2+ {[%clk 0:00:13]} 20. Kxh2 {[%clk 0:00:27]}  Qd6+ {[%clk 0:00:13]} 21. Kg2 {[%clk 0:00:28]}  Rxf3 {[%clk 0:00:14]} 22. Qxf3 {[%clk 0:00:28]}  Rf8 {[%clk 0:00:14]} 23. Qe2 {[%clk 0:00:26]}  Qe5 {[%clk 0:00:14]} 24. Rf1 {[%clk 0:00:24]}  Qxc3 {[%clk 0:00:13]} 25. Rxf8+ {[%clk 0:00:24]}  Kxf8 {[%clk 0:00:14]} 26. e4 {[%clk 0:00:15]}  d4 {[%clk 0:00:13]} 27. e5 {[%clk 0:00:13]}  Qc5 {[%clk 0:00:12]} 28. Qe4 {[%clk 0:00:13]}  Qd5 {[%clk 0:00:12]} 29. Kf3 {[%clk 0:00:12]}  Ke7 {[%clk 0:00:12]} 30. Kf4 {[%clk 0:00:12]}  g5+ {[%clk 0:00:11]} 31. Kf3 {[%clk 0:00:09]}  Ke6 {[%clk 0:00:11]} 32. a3 {[%clk 0:00:07]}  Qxe4+ {[%clk 0:00:11]} 33. Kxe4 {[%clk 0:00:06]}  c5 {[%clk 0:00:11]} 34. a4 {[%clk 0:00:07]}  a5 {[%clk 0:00:11]} 35. c4 {[%clk 0:00:06]}  dxc3 {[%clk 0:00:11]} 36. Kd3 {[%clk 0:00:07]}  Kxe5 {[%clk 0:00:11]} 37. Kxc3 {[%clk 0:00:07]}  Kd5 {[%clk 0:00:12]} 38. Kd3 {[%clk 0:00:08]}  c4+ {[%clk 0:00:12]} 39. Kc3 {[%clk 0:00:09]}  Kc5 {[%clk 0:00:13]} 40. Kc2 {[%clk 0:00:10]}  Kd4 {[%clk 0:00:13]} 41. Kb2 {[%clk 0:00:11]}  c3+ {[%clk 0:00:14]} 42. Kc2 {[%clk 0:00:10]}  Kc4 {[%clk 0:00:14]} 43. Kc1 {[%clk 0:00:11]}  Kd3 {[%clk 0:00:14]} 44. Kd1 {[%clk 0:00:11]}  c2+ {[%clk 0:00:14]} 45. Kc1 {[%clk 0:00:12]}  c6 {[%clk 0:00:15]} 46. h4 {[%clk 0:00:13]}  gxh4 {[%clk 0:00:15]} 47. g5 {[%clk 0:00:13]}  h3 {[%clk 0:00:16]} 48. g6 {[%clk 0:00:14]}  h2 {[%clk 0:00:16]} 49. Kb2 {[%clk 0:00:15]}  h1=Q {[%clk 0:00:16]} 0-1


[Site "https://www.chess.com"]

[Event "Titled Tuesday Blitz February 28 Early 2023"]
[White "Indjic, Aleksandar"]
[Black "Karttunen, Mika"]
[WhiteFideId "911925"]
[BlackFideId "502081"]
[WhiteElo "2625"]
[BlackElo "2396"]
[Result "1/2-1/2"]
[Round "03"]
[TimeControl "180+2"]
[Date "2023.02.28"]
[WhiteClock "0:00:26"]
[BlackClock "0:00:20"]

1. d4 {[%clk 0:03:00]}  Nf6 {[%clk 0:02:59]} 2. c4 {[%clk 0:03:01]}  e6 {[%clk 0:03:00]} 3. Nf3 {[%clk 0:03:02]}  d5 {[%clk 0:03:00]} 4. Nc3 {[%clk 0:03:02]}  Bb4 {[%clk 0:03:01]} 5. a3 {[%clk 0:03:00]}  Bxc3+ {[%clk 0:03:00]} 6. bxc3 {[%clk 0:03:01]}  c5 {[%clk 0:02:51]} 7. e3 {[%clk 0:02:46]}  Qa5 {[%clk 0:02:43]} 8. Bd2 {[%clk 0:02:35]}  Ne4 {[%clk 0:02:35]} 9. cxd5 {[%clk 0:02:29]}  exd5 {[%clk 0:02:27]} 10. c4 {[%clk 0:02:29]}  Nxd2 {[%clk 0:02:24]} 11. Qxd2 {[%clk 0:02:29]}  Qxd2+ {[%clk 0:02:18]} 12. Kxd2 {[%clk 0:02:30]}  cxd4 {[%clk 0:02:17]} 13. Nxd4 {[%clk 0:02:29]}  dxc4 {[%clk 0:02:06]} 14. Bxc4 {[%clk 0:02:30]}  O-O {[%clk 0:02:06]} 15. Rab1 {[%clk 0:02:30]}  Nd7 {[%clk 0:02:03]} 16. Rhc1 {[%clk 0:02:26]}  Nb6 {[%clk 0:01:54]} 17. Bb3 {[%clk 0:02:25]}  Rd8 {[%clk 0:01:40]} 18. Ke2 {[%clk 0:02:19]}  Bg4+ {[%clk 0:01:14]} 19. f3 {[%clk 0:02:18]}  Bd7 {[%clk 0:01:14]} 20. Rc7 {[%clk 0:02:16]}  Rab8 {[%clk 0:01:14]} 21. Rbc1 {[%clk 0:02:07]}  Kf8 {[%clk 0:01:14]} 22. g4 {[%clk 0:02:05]}  Be8 {[%clk 0:00:57]} 23. g5 {[%clk 0:01:53]}  Nd5 {[%clk 0:00:53]} 24. R7c5 {[%clk 0:01:48]}  Ne7 {[%clk 0:00:53]} 25. h4 {[%clk 0:01:44]}  Rbc8 {[%clk 0:00:47]} 26. Rc7 {[%clk 0:01:44]}  Bc6 {[%clk 0:00:33]} 27. Rxc8 {[%clk 0:01:39]}  Rxc8 {[%clk 0:00:32]} 28. Kd2 {[%clk 0:01:38]}  Bd7 {[%clk 0:00:32]} 29. Rxc8+ {[%clk 0:01:21]}  Nxc8 {[%clk 0:00:32]} 30. Bd5 {[%clk 0:01:20]}  Nd6 {[%clk 0:00:32]} 31. e4 {[%clk 0:01:20]}  b6 {[%clk 0:00:27]} 32. Ke3 {[%clk 0:01:14]}  Nb5 {[%clk 0:00:27]} 33. Nxb5 {[%clk 0:01:10]}  Bxb5 {[%clk 0:00:27]} 34. f4 {[%clk 0:01:10]}  Ke7 {[%clk 0:00:28]} 35. f5 {[%clk 0:01:07]}  f6 {[%clk 0:00:28]} 36. Kd4 {[%clk 0:01:00]}  Kd6 {[%clk 0:00:27]} 37. Bb3 {[%clk 0:00:57]}  h6 {[%clk 0:00:27]} 38. Bd5 {[%clk 0:00:48]}  Be2 {[%clk 0:00:25]} 39. Bb3 {[%clk 0:00:48]}  Bb5 {[%clk 0:00:25]} 40. Ba2 {[%clk 0:00:45]}  Be2 {[%clk 0:00:25]} 41. Bg8 {[%clk 0:00:36]}  Bb5 {[%clk 0:00:24]} 42. Be6 {[%clk 0:00:35]}  Bc6 {[%clk 0:00:24]} 43. Bf7 {[%clk 0:00:34]}  Bb7 {[%clk 0:00:24]} 44. Bc4 {[%clk 0:00:32]}  Bc6 {[%clk 0:00:24]} 45. Bb3 {[%clk 0:00:26]}  Bb7 {[%clk 0:00:24]} 46. Bc4 {[%clk 0:00:26]}  Bc6 {[%clk 0:00:24]} 47. Bb3 {[%clk 0:00:26]}  Bb7 {[%clk 0:00:20]} 48. Bc4 {[%clk 0:00:26]} 1/2-1/2


[Site "https://www.chess.com"]

[Event "Titled Tuesday Blitz February 28 Early 2023"]
[White "Kravtsiv, Martyn"]
[Black "Fiorito, Francisco"]
[WhiteFideId "14113147"]
[BlackFideId "180165"]
[WhiteElo "2695"]
[BlackElo "2341"]
[Result "1-0"]
[Round "03"]
[TimeControl "180+2"]
[Date "2023.02.28"]
[WhiteClock "0:02:07"]
[BlackClock "0:00:55"]

1. e4 {[%clk 0:03:00]}  c5 {[%clk 0:02:59]} 2. Nf3 {[%clk 0:03:01]}  Nc6 {[%clk 0:02:59]} 3. Bb5 {[%clk 0:03:00]}  g6 {[%clk 0:03:00]} 4. O-O {[%clk 0:02:57]}  Bg7 {[%clk 0:03:00]} 5. Bxc6 {[%clk 0:02:57]}  dxc6 {[%clk 0:03:00]} 6. d3 {[%clk 0:02:57]}  Qc7 {[%clk 0:03:00]} 7. a4 {[%clk 0:02:56]}  a5 {[%clk 0:03:00]} 8. Na3 {[%clk 0:02:56]}  e5 {[%clk 0:02:57]} 9. c3 {[%clk 0:02:52]}  Ne7 {[%clk 0:02:36]} 10. Be3 {[%clk 0:02:51]}  b6 {[%clk 0:02:34]} 11. d4 {[%clk 0:02:50]}  Ba6 {[%clk 0:02:27]} 12. dxc5 {[%clk 0:02:46]}  bxc5 {[%clk 0:02:09]} 13. Bxc5 {[%clk 0:02:45]}  Bxf1 {[%clk 0:01:57]} 14. Qxf1 {[%clk 0:02:46]}  O-O {[%clk 0:01:55]} 15. Nc4 {[%clk 0:02:46]}  f6 {[%clk 0:01:41]} 16. Bb6 {[%clk 0:02:38]}  Qb7 {[%clk 0:01:39]} 17. Bxa5 {[%clk 0:02:37]}  c5 {[%clk 0:01:27]} 18. Bb6 {[%clk 0:02:35]}  Qxe4 {[%clk 0:01:23]} 19. Bxc5 {[%clk 0:02:34]}  Rfc8 {[%clk 0:01:19]} 20. Nd6 {[%clk 0:02:31]}  Qc6 {[%clk 0:01:13]} 21. Nxc8 {[%clk 0:02:31]}  Nxc8 {[%clk 0:01:14]} 22. Qc4+ {[%clk 0:02:15]}  Kh8 {[%clk 0:01:14]} 23. Rd1 {[%clk 0:02:15]}  Ne7 {[%clk 0:01:07]} 24. Qb5 {[%clk 0:02:12]}  Qc7 {[%clk 0:01:06]} 25. Rd7 {[%clk 0:02:08]}  Rd8 {[%clk 0:00:55]} 26. Rxc7 {[%clk 0:02:07]} 1-0


[Site "https://www.chess.com"]

[Event "Titled Tuesday Blitz February 28 Early 2023"]
[White "Mammadzada, Gunay"]
[Black "Madaminov, Mukhiddin"]
[WhiteFideId "13403729"]
[BlackFideId "14210703"]
[WhiteElo "2396"]
[BlackElo "2511"]
[Result "0-1"]
[Round "03"]
[TimeControl "180+2"]
[Date "2023.02.28"]
[WhiteClock "0:00:16"]
[BlackClock "0:00:10"]

1. e4 {[%clk 0:03:00]}  e5 {[%clk 0:03:00]} 2. Nf3 {[%clk 0:02:59]}  Nc6 {[%clk 0:03:00]} 3. Bb5 {[%clk 0:02:58]}  a6 {[%clk 0:03:00]} 4. Ba4 {[%clk 0:02:58]}  Nf6 {[%clk 0:03:00]} 5. O-O {[%clk 0:02:55]}  Nxe4 {[%clk 0:03:00]} 6. d4 {[%clk 0:02:53]}  b5 {[%clk 0:03:01]} 7. Bb3 {[%clk 0:02:53]}  d5 {[%clk 0:03:02]} 8. dxe5 {[%clk 0:02:54]}  Be6 {[%clk 0:03:02]} 9. Nbd2 {[%clk 0:02:48]}  Be7 {[%clk 0:03:02]} 10. c3 {[%clk 0:02:46]}  O-O {[%clk 0:03:02]} 11. Qe2 {[%clk 0:02:44]}  Nc5 {[%clk 0:03:02]} 12. Bc2 {[%clk 0:02:36]}  d4 {[%clk 0:03:00]} 13. cxd4 {[%clk 0:02:36]}  Nxd4 {[%clk 0:03:01]} 14. Nxd4 {[%clk 0:02:36]}  Qxd4 {[%clk 0:03:02]} 15. Kh1 {[%clk 0:02:07]}  Rad8 {[%clk 0:02:06]} 16. f4 {[%clk 0:01:55]}  Nd3 {[%clk 0:02:05]} 17. Nb3 {[%clk 0:01:26]}  Qc4 {[%clk 0:01:54]} 18. Be3 {[%clk 0:00:56]}  Nb4 {[%clk 0:01:18]} 19. Bxh7+ {[%clk 0:00:47]}  Kxh7 {[%clk 0:01:16]} 20. Qh5+ {[%clk 0:00:48]}  Kg8 {[%clk 0:01:16]} 21. f5 {[%clk 0:00:48]}  Nc2 {[%clk 0:00:21]} 22. Rf4 {[%clk 0:00:23]}  Qd3 {[%clk 0:00:11]} 23. Bc5 {[%clk 0:00:16]}  Nxa1 {[%clk 0:00:10]} 0-1


[Site "https://www.chess.com"]